[Event "Paul Keres Memorial Festival 2022"]
[Site "Pärnu, Estonia Resort Hotel & Spa"]
[Date "2022.07.22"]
[Round "8.1"]
[White "Chukavin, Kirill"]
[Black "Kantans, Toms"]
[Result "0-1"]
[TimeControl "60 min for 30 moves + 30 min until game end, from first move every move 30 sec time increment"]
[WhiteTitle "FM"]
[BlackTitle "GM"]
[WhiteFideId "4503023"]
[BlackFideId "11602945"]
[WhiteElo "2418"]
[BlackElo "2486"]

1. e4 {[%clk 00:52:11]} {[%emt 00:08:48]} c5 {[%clk 01:00:55]} {[%emt
00:00:06]} 2. Nf3 {[%clk 00:52:11]} {[%emt 00:00:30]} d6 {[%clk 01:01:01]}
{[%emt 00:00:24]} 3. d4 {[%clk 00:52:22]} {[%emt 00:00:19]} cxd4 {[%clk
01:01:26]} {[%emt 00:00:05]} 4. Nxd4 {[%clk 00:52:46]} {[%emt 00:00:06]} Nf6
{[%clk 01:01:51]} {[%emt 00:00:04]} 5. Nc3 {[%clk 00:53:10]} {[%emt 00:00:06]}
a6 {[%clk 01:02:18]} {[%emt 00:00:03]} 6. h3 {[%clk 00:52:48]} {[%emt
00:00:51]} e5 {[%clk 01:02:18]} {[%emt 00:00:31]} 7. Nde2 {[%clk 00:52:25]}
{[%emt 00:00:53]} h5 {[%clk 01:02:42]} {[%emt 00:00:06]} 8. g3 {[%clk
00:52:35]} {[%emt 00:00:20]} Be7 {[%clk 01:02:42]} {[%emt 00:00:30]} 9. Bg2
{[%clk 00:51:24]} {[%emt 00:01:40]} Be6 {[%clk 01:02:49]} {[%emt 00:00:24]} 10.
a4 {[%clk 00:51:23]} {[%emt 00:00:31]} Nbd7 {[%clk 01:03:11]} {[%emt 00:00:08]}
11. O-O {[%clk 00:48:24]} {[%emt 00:03:29]} Rc8 {[%clk 01:03:19]} {[%emt
00:00:22]} 12. Be3 {[%clk 00:47:22]} {[%emt 00:01:32]} O-O {[%clk 01:03:26]}
{[%emt 00:00:24]} 13. a5 {[%clk 00:46:24]} {[%emt 00:01:29]} Qc7 {[%clk
01:01:49]} {[%emt 00:02:07]} 14. Qd2 {[%clk 00:46:15]} {[%emt 00:00:38]} Rfe8
{[%clk 01:00:51]} {[%emt 00:01:28]} 15. Rfd1 {[%clk 00:41:14]} {[%emt
00:05:30]} Nc5 {[%clk 00:56:26]} {[%emt 00:04:55]} 16. Bg5 {[%clk 00:35:30]}
{[%emt 00:06:13]} Ncd7 {[%clk 00:47:52]} {[%emt 00:09:04]} 17. Kh2 {[%clk
00:33:40]} {[%emt 00:02:19]} b5 {[%clk 00:45:51]} {[%emt 00:02:32]} 18. axb6
{[%clk 00:33:13]} {[%emt 00:00:57]} Qxb6 {[%clk 00:46:16]} {[%emt 00:00:05]} 19.
f4 {[%clk 00:24:34]} {[%emt 00:09:09]} Bc4 {[%clk 00:41:52]} {[%emt 00:04:55]}
20. Ng1 {[%clk 00:23:39]} {[%emt 00:01:24]} exf4 {[%clk 00:29:33]} {[%emt
00:12:49]} 21. gxf4 {[%clk 00:23:01]} {[%emt 00:01:07]} Bf8 {[%clk 00:29:05]}
{[%emt 00:00:59]} 22. Bh4 {[%clk 00:14:06]} {[%emt 00:09:24]} Bb5 {[%clk
00:27:05]} {[%emt 00:02:30]} 23. Bf2 {[%clk 00:12:55]} {[%emt 00:01:41]} Qb8
{[%clk 00:27:20]} {[%emt 00:00:16]} 24. Bd4 {[%clk 00:12:37]} {[%emt 00:00:48]}
Bc6 {[%clk 00:24:51]} {[%emt 00:03:00]} 25. Re1 {[%clk 00:08:00]} {[%emt
00:05:06]} Qb7 {[%clk 00:25:16]} {[%emt 00:00:05]} 26. Qd3 {[%clk 00:06:38]}
{[%emt 00:01:52]} Nc5 {[%clk 00:24:05]} {[%emt 00:01:41]} 27. Bxc5 {[%clk
00:06:55]} {[%emt 00:00:13]} dxc5 {[%clk 00:24:34]} {[%emt 00:00:02]} 28. Nd5
{[%clk 00:03:42]} {[%emt 00:03:43]} Bxd5 {[%clk 00:19:04]} {[%emt 00:06:00]} 29.
exd5 {[%clk 00:04:05]} {[%emt 00:00:07]} Qb4 {[%clk 00:19:30]} {[%emt
00:00:03]} 30. Ne2 {[%clk 00:31:13]} {[%emt 00:03:22]} c4 {[%clk 00:47:40]}
{[%emt 00:02:21]} 31. Qc3 {[%clk 00:19:57]} {[%emt 00:11:45]} Qb8 {[%clk
00:45:47]} {[%emt 00:02:23]} 32. Qf3 {[%clk 00:12:07]} {[%emt 00:08:20]} Qxb2
{[%clk 00:39:35]} {[%emt 00:06:43]} 33. Rxa6 {[%clk 00:09:42]} {[%emt
00:02:55]} Qxc2 {[%clk 00:33:21]} {[%emt 00:06:44]} 34. Nd4 {[%clk 00:09:23]}
{[%emt 00:00:49]} Qb2 {[%clk 00:33:17]} {[%emt 00:00:34]} 35. Rxe8 {[%clk
00:07:54]} {[%emt 00:01:59]} Rxe8 {[%clk 00:33:45]} {[%emt 00:00:02]} 36. Nf5
{[%clk 00:02:14]} {[%emt 00:06:10]} g6 {[%clk 00:32:27]} {[%emt 00:01:49]} 37.
Ne3 {[%clk 00:02:07]} {[%emt 00:00:36]} Bh6 {[%clk 00:25:18]} {[%emt 00:07:39]}
38. Nxc4 {[%clk 00:00:44]} {[%emt 00:01:54]} Qd4 {[%clk 00:25:42]} {[%emt
00:00:06]} 39. Rc6 {[%clk 00:00:35]} {[%emt 00:00:39]} Bxf4+ {[%clk 00:25:20]}
{[%emt 00:00:52]} 40. Kh1 {[%clk 00:01:03]} {[%emt 00:00:02]} Re1+ {[%clk
00:22:49]} {[%emt 00:03:01]} 41. Bf1 {[%clk 00:01:31]} {[%emt 00:00:02]} Ne4
{[%clk 00:23:06]} {[%emt 00:00:13]} 42. Kg2 {[%clk 00:00:59]} {[%emt 00:01:01]}
Ng3 {[%clk 00:22:55]} {[%emt 00:00:42]} 0-1

[Event "Paul Keres Memorial Festival 2022"]
[Site "Pärnu, Estonia Resort Hotel & Spa"]
[Date "2022.07.22"]
[Round "8.3"]
[White "Protassov, Vlad"]
[Black "Sulskis, Sarunas"]
[Result "0-1"]
[TimeControl "60 min for 30 moves + 30 min until game end, from first move every move 30 sec time increment"]
[BlackTitle "GM"]
[WhiteFideId "4507010"]
[BlackFideId "12800112"]
[WhiteElo "1824"]
[BlackElo "2481"]

1. d4 {[%clk 01:00:56]} {[%emt 00:00:04]} d5 {[%clk 01:00:46]} {[%emt
00:00:13]} 2. c4 {[%clk 01:00:43]} {[%emt 00:00:42]} c6 {[%clk 01:00:43]}
{[%emt 00:00:33]} 3. Nc3 {[%clk 01:00:59]} {[%emt 00:00:14]} Nf6 {[%clk
01:00:25]} {[%emt 00:00:49]} 4. Nf3 {[%clk 01:01:05]} {[%emt 00:00:23]} e6
{[%clk 01:00:37]} {[%emt 00:00:19]} 5. e3 {[%clk 00:53:27]} {[%emt 00:08:08]}
Nbd7 {[%clk 01:00:54]} {[%emt 00:00:13]} 6. Bd3 {[%clk 00:53:36]} {[%emt
00:00:20]} dxc4 {[%clk 00:57:45]} {[%emt 00:03:39]} 7. Bxc4 {[%clk 00:53:50]}
{[%emt 00:00:17]} b5 {[%clk 00:58:08]} {[%emt 00:00:07]} 8. Bd3 {[%clk
00:54:08]} {[%emt 00:00:12]} Bb7 {[%clk 00:58:18]} {[%emt 00:00:19]} 9. O-O
{[%clk 00:53:53]} {[%emt 00:00:44]} a6 {[%clk 00:57:45]} {[%emt 00:01:04]} 10.
Qe2 {[%clk 00:52:19]} {[%emt 00:02:04]} c5 {[%clk 00:57:28]} {[%emt 00:00:47]}
11. b3 {[%clk 00:38:08]} {[%emt 00:14:40]} cxd4 {[%clk 00:53:10]} {[%emt
00:04:48]} 12. exd4 {[%clk 00:36:02]} {[%emt 00:02:37]} Be7 {[%clk 00:49:51]}
{[%emt 00:03:48]} 13. Bb2 {[%clk 00:35:22]} {[%emt 00:01:09]} O-O {[%clk
00:49:33]} {[%emt 00:00:48]} 14. Rac1 {[%clk 00:30:04]} {[%emt 00:05:48]} Nb6
{[%clk 00:43:21]} {[%emt 00:06:42]} 15. Ne4 {[%clk 00:26:24]} {[%emt 00:04:10]}
Bxe4 {[%clk 00:39:30]} {[%emt 00:04:22]} 16. Bxe4 {[%clk 00:26:44]} {[%emt
00:00:09]} Nxe4 {[%clk 00:39:55]} {[%emt 00:00:06]} 17. Qxe4 {[%clk 00:27:09]}
{[%emt 00:00:06]} Qd5 {[%clk 00:40:18]} {[%emt 00:00:07]} 18. Qxd5 {[%clk
00:26:58]} {[%emt 00:00:41]} Nxd5 {[%clk 00:40:42]} {[%emt 00:00:06]} 19. Ne5
{[%clk 00:24:49]} {[%emt 00:02:39]} Rfc8 {[%clk 00:39:17]} {[%emt 00:01:55]} 20.
g3 {[%clk 00:23:45]} {[%emt 00:01:34]} Kf8 {[%clk 00:34:00]} {[%emt 00:05:48]}
21. Kg2 {[%clk 00:15:37]} {[%emt 00:08:38]} Ke8 {[%clk 00:33:16]} {[%emt
00:01:13]} 22. Kf3 {[%clk 00:13:20]} {[%emt 00:02:47]} a5 {[%clk 00:28:53]}
{[%emt 00:04:53]} 23. Rxc8+ {[%clk 00:12:19]} {[%emt 00:01:31]} Rxc8 {[%clk
00:24:52]} {[%emt 00:04:31]} 24. Rc1 {[%clk 00:12:44]} {[%emt 00:00:04]} Ra8
{[%clk 00:23:44]} {[%emt 00:01:38]} 25. a3 {[%clk 00:07:59]} {[%emt 00:05:15]}
h5 {[%clk 00:17:22]} {[%emt 00:06:52]} 26. h4 {[%clk 00:07:41]} {[%emt
00:00:48]} Bd6 {[%clk 00:17:23]} {[%emt 00:00:29]} 27. Rc6 {[%clk 00:03:31]}
{[%emt 00:04:40]} Ke7 {[%clk 00:15:49]} {[%emt 00:02:04]} 28. Ke2 {[%clk
00:02:56]} {[%emt 00:01:05]} a4 {[%clk 00:11:54]} {[%emt 00:04:26]} 29. b4
{[%clk 00:01:20]} {[%emt 00:02:05]} f6 {[%clk 00:08:59]} {[%emt 00:03:24]} 30.
Nd3 {[%clk 00:31:33]} {[%emt 00:00:18]} Kd7 {[%clk 00:39:00]} {[%emt 00:00:28]}
31. Rc1 {[%clk 00:31:31]} {[%emt 00:00:32]} Nb6 {[%clk 00:37:34]} {[%emt
00:01:56]} 32. Nc5+ {[%clk 00:29:32]} {[%emt 00:02:29]} Ke7 {[%clk 00:29:21]}
{[%emt 00:08:43]} 33. Ne4 {[%clk 00:18:21]} {[%emt 00:11:41]} Nc4 {[%clk
00:23:39]} {[%emt 00:06:12]} 34. Rc2 {[%clk 00:18:34]} {[%emt 00:00:16]} Kd7
{[%clk 00:14:02]} {[%emt 00:10:08]} 35. Bc1 {[%clk 00:12:46]} {[%emt 00:06:18]}
Rc8 {[%clk 00:10:06]} {[%emt 00:04:26]} 36. Nc3 {[%clk 00:11:27]} {[%emt
00:01:49]} Nb6 {[%clk 00:09:55]} {[%emt 00:00:41]} 37. Kd3 {[%clk 00:11:01]}
{[%emt 00:00:55]} Nd5 {[%clk 00:08:52]} {[%emt 00:01:34]} 38. Nxb5 {[%clk
00:10:42]} {[%emt 00:00:49]} Rxc2 {[%clk 00:08:59]} {[%emt 00:00:24]} 39. Kxc2
{[%clk 00:11:02]} {[%emt 00:00:10]} Kc6 {[%clk 00:08:37]} {[%emt 00:00:52]} 40.
Nxd6 {[%clk 00:06:41]} {[%emt 00:04:51]} Kxd6 {[%clk 00:08:56]} {[%emt
00:00:10]} 41. Kd3 {[%clk 00:00:51]} {[%emt 00:06:20]} Kc6 {[%clk 00:09:05]}
{[%emt 00:00:21]} 42. f3 {[%clk 00:00:34]} {[%emt 00:00:47]} f5 {[%clk
00:08:12]} {[%emt 00:01:22]} 43. Bf4 {[%clk 00:00:38]} {[%emt 00:00:26]} g6
{[%clk 00:08:12]} {[%emt 00:00:30]} 44. Bg5 {[%clk 00:00:40]} {[%emt 00:00:27]}
Nc7 {[%clk 00:07:55]} {[%emt 00:00:48]} 45. Kc4 {[%clk 00:00:47]} {[%emt
00:00:23]} Nb5 {[%clk 00:08:09]} {[%emt 00:00:17]} 46. Bc1 {[%clk 00:01:05]}
{[%emt 00:00:11]} Nd6+ {[%clk 00:05:46]} {[%emt 00:02:53]} 47. Kd3 {[%clk
00:00:53]} {[%emt 00:00:42]} Kd5 {[%clk 00:06:07]} {[%emt 00:00:08]} 48. Bb2
{[%clk 00:00:33]} {[%emt 00:00:49]} Nb5 {[%clk 00:05:51]} {[%emt 00:00:47]} 49.
Ke3 {[%clk 00:00:38]} {[%emt 00:00:25]} Kc4 {[%clk 00:06:07]} {[%emt 00:00:14]}
50. Kf4 {[%clk 00:00:50]} {[%emt 00:00:18]} Kb3 {[%clk 00:05:53]} {[%emt
00:00:44]} 51. Bc1 {[%clk 00:00:35]} {[%emt 00:00:45]} Kc2 {[%clk 00:06:18]}
{[%emt 00:00:04]} 52. Ke5 {[%clk 00:00:37]} {[%emt 00:00:28]} Kxc1 {[%clk
00:06:37]} {[%emt 00:00:11]} 53. Kxe6 {[%clk 00:00:59]} {[%emt 00:00:07]} Nxa3
{[%clk 00:06:09]} {[%emt 00:00:58]} 54. d5 {[%clk 00:00:38]} {[%emt 00:00:51]}
Nc4 {[%clk 00:06:10]} {[%emt 00:00:29]} 55. d6 {[%clk 00:00:34]} {[%emt
00:00:34]} Nxd6 {[%clk 00:06:26]} {[%emt 00:00:14]} 56. Kxd6 {[%clk 00:00:59]}
{[%emt 00:00:06]} a3 {[%clk 00:06:50]} {[%emt 00:00:07]} 57. b5 {[%clk
00:01:18]} {[%emt 00:00:10]} a2 {[%clk 00:07:14]} {[%emt 00:00:05]} 0-1

[Event "Paul Keres Memorial Festival 2022"]
[Site "Pärnu, Estonia Resort Hotel & Spa"]
[Date "2022.07.22"]
[Round "8.4"]
[White "Olde, Margareth"]
[Black "Rezniks, Roberts"]
[Result "1-0"]
[TimeControl "60 min for 30 moves + 30 min until game end, from first move every move 30 sec time increment"]
[WhiteTitle "WIM"]
[WhiteFideId "4503082"]
[BlackFideId "11624884"]
[WhiteElo "2235"]
[BlackElo "1648"]

1. e4 {[%clk 01:00:55]} {[%emt 00:00:04]} c5 {[%clk 00:53:01]} {[%emt
00:07:59]} 2. c4 {[%clk 01:01:15]} {[%emt 00:00:11]} d6 {[%clk 00:50:53]}
{[%emt 00:02:38]} 3. Ne2 {[%clk 01:01:04]} {[%emt 00:00:41]} Nf6 {[%clk
00:49:30]} {[%emt 00:01:52]} 4. Nbc3 {[%clk 01:01:18]} {[%emt 00:00:16]} e5
{[%clk 00:49:19]} {[%emt 00:00:40]} 5. g3 {[%clk 01:01:21]} {[%emt 00:00:27]}
Nc6 {[%clk 00:48:22]} {[%emt 00:01:26]} 6. Bg2 {[%clk 01:01:37]} {[%emt
00:00:15]} Be6 {[%clk 00:47:24]} {[%emt 00:01:29]} 7. d3 {[%clk 01:01:57]}
{[%emt 00:00:10]} Be7 {[%clk 00:47:23]} {[%emt 00:00:31]} 8. O-O {[%clk
01:02:19]} {[%emt 00:00:07]} Qd7 {[%clk 00:47:36]} {[%emt 00:00:17]} 9. Nd5
{[%clk 01:00:56]} {[%emt 00:01:53]} O-O-O {[%clk 00:42:32]} {[%emt 00:05:35]}
10. Qa4 {[%clk 00:52:06]} {[%emt 00:09:20]} h5 {[%clk 00:37:53]} {[%emt
00:05:08]} 11. b4 {[%clk 00:48:57]} {[%emt 00:03:40]} Nxd5 {[%clk 00:32:17]}
{[%emt 00:06:06]} 12. exd5 {[%clk 00:43:59]} {[%emt 00:05:28]} Nxb4 {[%clk
00:32:42]} {[%emt 00:00:05]} 13. Qxa7 {[%clk 00:38:47]} {[%emt 00:05:43]} Bh3
{[%clk 00:31:48]} {[%emt 00:01:23]} 14. a3 {[%clk 00:34:49]} {[%emt 00:04:29]}
Bxg2 {[%clk 00:29:29]} {[%emt 00:02:49]} 15. Kxg2 {[%clk 00:32:25]} {[%emt
00:02:53]} Na6 {[%clk 00:29:58]} {[%emt 00:00:01]} 16. h3 {[%clk 00:29:24]}
{[%emt 00:03:31]} Qc7 {[%clk 00:30:01]} {[%emt 00:00:25]} 17. Bd2 {[%clk
00:26:54]} {[%emt 00:03:03]} Kd7 {[%clk 00:23:39]} {[%emt 00:06:51]} 18. Rab1
{[%clk 00:26:16]} {[%emt 00:01:08]} Rb8 {[%clk 00:24:07]} {[%emt 00:00:01]} 19.
Rb6 {[%clk 00:23:02]} {[%emt 00:03:43]} Bd8 {[%clk 00:21:46]} {[%emt 00:02:52]}
20. Ba5 {[%clk 00:22:34]} {[%emt 00:00:58]} 1-0

[Event "Paul Keres Memorial Festival 2022"]
[Site "Pärnu, Estonia Resort Hotel & Spa"]
[Date "2022.07.22"]
[Round "8.6"]
[White "Olde, Karl Erik"]
[Black "Paikens, Reinis"]
[Result "0-1"]
[TimeControl "60 min for 30 moves + 30 min until game end, from first move every move 30 sec time increment"]
[WhiteFideId "4505760"]
[BlackFideId "11624078"]
[WhiteElo "1842"]
[BlackElo "1567"]

1. d4 {[%clk 01:00:35]} {[%emt 00:00:25]} d5 {[%clk 01:00:47]} {[%emt
00:00:13]} 2. c4 {[%clk 01:00:10]} {[%emt 00:00:54]} c6 {[%clk 01:00:58]}
{[%emt 00:00:19]} 3. Nf3 {[%clk 01:00:15]} {[%emt 00:00:26]} Nf6 {[%clk
01:01:04]} {[%emt 00:00:24]} 4. e3 {[%clk 00:56:16]} {[%emt 00:04:28]} g6
{[%clk 01:00:17]} {[%emt 00:01:17]} 5. Nbd2 {[%clk 00:54:54]} {[%emt 00:01:53]}
Bg7 {[%clk 01:00:33]} {[%emt 00:00:14]} 6. Bd3 {[%clk 00:54:34]} {[%emt
00:00:50]} O-O {[%clk 01:00:37]} {[%emt 00:00:26]} 7. O-O {[%clk 00:54:58]}
{[%emt 00:00:07]} Nbd7 {[%clk 01:00:51]} {[%emt 00:00:15]} 8. b4 {[%clk
00:53:02]} {[%emt 00:02:26]} Qc7 {[%clk 01:00:25]} {[%emt 00:00:57]} 9. Bb2
{[%clk 00:51:39]} {[%emt 00:01:53]} Ne8 {[%clk 00:59:23]} {[%emt 00:01:32]} 10.
Rc1 {[%clk 00:48:11]} {[%emt 00:03:59]} Qd6 {[%clk 00:58:35]} {[%emt 00:01:17]}
11. c5 {[%clk 00:42:52]} {[%emt 00:05:48]} Qc7 {[%clk 00:58:44]} {[%emt
00:00:22]} 12. Re1 {[%clk 00:41:17]} {[%emt 00:02:05]} f5 {[%clk 00:57:25]}
{[%emt 00:01:49]} 13. a4 {[%clk 00:38:30]} {[%emt 00:03:17]} h6 {[%clk
00:57:20]} {[%emt 00:00:34]} 14. Qc2 {[%clk 00:37:35]} {[%emt 00:01:26]} e5
{[%clk 00:52:14]} {[%emt 00:05:36]} 15. Nxe5 {[%clk 00:35:43]} {[%emt
00:02:22]} Nxe5 {[%clk 00:51:42]} {[%emt 00:01:01]} 16. dxe5 {[%clk 00:36:10]}
{[%emt 00:00:03]} Bxe5 {[%clk 00:51:08]} {[%emt 00:01:04]} 17. Bxe5 {[%clk
00:34:03]} {[%emt 00:02:37]} Qxe5 {[%clk 00:51:26]} {[%emt 00:00:11]} 18. f3
{[%clk 00:33:15]} {[%emt 00:01:19]} Nf6 {[%clk 00:50:48]} {[%emt 00:01:07]} 19.
e4 {[%clk 00:28:51]} {[%emt 00:04:55]} fxe4 {[%clk 00:43:04]} {[%emt 00:08:14]}
20. fxe4 {[%clk 00:29:02]} {[%emt 00:00:19]} Qd4+ {[%clk 00:43:19]} {[%emt
00:00:15]} 21. Kh1 {[%clk 00:29:03]} {[%emt 00:00:29]} Ng4 {[%clk 00:43:39]}
{[%emt 00:00:10]} 22. Rf1 {[%clk 00:16:01]} {[%emt 00:13:33]} Rxf1+ {[%clk
00:39:36]} {[%emt 00:04:32]} 23. Rxf1 {[%clk 00:16:04]} {[%emt 00:00:28]} Nf2+
{[%clk 00:39:51]} {[%emt 00:00:15]} 24. Rxf2 {[%clk 00:16:22]} {[%emt
00:00:12]} Qxf2 {[%clk 00:40:14]} {[%emt 00:00:07]} 25. exd5 {[%clk 00:16:46]}
{[%emt 00:00:06]} Bf5 {[%clk 00:26:19]} {[%emt 00:14:26]} 26. dxc6 {[%clk
00:16:22]} {[%emt 00:00:54]} Re8 {[%clk 00:24:38]} {[%emt 00:02:10]} 27. Qc4+
{[%clk 00:07:46]} {[%emt 00:09:06]} Kf8 {[%clk 00:24:39]} {[%emt 00:00:29]} 28.
Bf1 {[%clk 00:08:02]} {[%emt 00:00:15]} bxc6 {[%clk 00:12:48]} {[%emt
00:12:21]} 29. Qc3 {[%clk 00:07:17]} {[%emt 00:01:15]} Kg8 {[%clk 00:10:49]}
{[%emt 00:02:28]} 30. Qf6 {[%clk 00:34:08]} {[%emt 00:03:39]} Re1 {[%clk
00:38:19]} {[%emt 00:03:00]} 31. Qd8+ {[%clk 00:31:56]} {[%emt 00:02:42]} Kf7
{[%clk 00:36:12]} {[%emt 00:02:37]} 32. Qc7+ {[%clk 00:30:20]} {[%emt
00:02:06]} Re7 {[%clk 00:28:52]} {[%emt 00:07:50]} 33. Qd6 {[%clk 00:28:52]}
{[%emt 00:01:58]} Be6 {[%clk 00:26:30]} {[%emt 00:02:52]} 34. Qd3 {[%clk
00:17:06]} {[%emt 00:12:15]} Rd7 {[%clk 00:20:35]} {[%emt 00:06:25]} 35. Qf3+
{[%clk 00:17:15]} {[%emt 00:00:21]} Qxf3 {[%clk 00:20:53]} {[%emt 00:00:12]} 36.
Nxf3 {[%clk 00:17:41]} {[%emt 00:00:04]} Rd1 {[%clk 00:20:59]} {[%emt
00:00:24]} 37. Kg1 {[%clk 00:18:03]} {[%emt 00:00:09]} Bd5 {[%clk 00:21:06]}
{[%emt 00:00:23]} 38. b5 {[%clk 00:16:31]} {[%emt 00:02:01]} Bxf3 {[%clk
00:20:03]} {[%emt 00:01:33]} 39. gxf3 {[%clk 00:16:59]} {[%emt 00:00:02]} Rb1
{[%clk 00:19:33]} {[%emt 00:00:58]} 40. Kf2 {[%clk 00:15:11]} {[%emt 00:02:20]}
Ke7 {[%clk 00:17:10]} {[%emt 00:02:53]} 41. Bd3 {[%clk 00:13:11]} {[%emt
00:02:30]} Rb2+ {[%clk 00:15:11]} {[%emt 00:02:29]} 42. Kg3 {[%clk 00:13:28]}
{[%emt 00:00:13]} g5 {[%clk 00:14:37]} {[%emt 00:01:04]} 43. h3 {[%clk
00:10:52]} {[%emt 00:03:06]} Rb4 {[%clk 00:14:16]} {[%emt 00:00:51]} 44. bxc6
{[%clk 00:11:12]} {[%emt 00:00:10]} Kd8 {[%clk 00:14:02]} {[%emt 00:00:44]} 45.
a5 {[%clk 00:07:15]} {[%emt 00:04:28]} Kc7 {[%clk 00:13:14]} {[%emt 00:01:17]}
46. Be4 {[%clk 00:06:52]} {[%emt 00:00:53]} Ra4 {[%clk 00:12:29]} {[%emt
00:01:16]} 47. Kg4 {[%clk 00:07:11]} {[%emt 00:00:10]} Rxa5 {[%clk 00:12:38]}
{[%emt 00:00:21]} 48. h4 {[%clk 00:06:41]} {[%emt 00:01:00]} Rxc5 {[%clk
00:12:12]} {[%emt 00:00:56]} 49. hxg5 {[%clk 00:06:23]} {[%emt 00:00:48]} hxg5
{[%clk 00:12:26]} {[%emt 00:00:17]} 50. Bf5 {[%clk 00:05:52]} {[%emt 00:01:01]}
a5 {[%clk 00:12:45]} {[%emt 00:00:11]} 51. Kxg5 {[%clk 00:06:09]} {[%emt
00:00:13]} a4 {[%clk 00:13:05]} {[%emt 00:00:10]} 52. Kg6 {[%clk 00:06:24]}
{[%emt 00:00:15]} Rxf5 {[%clk 00:13:03]} {[%emt 00:00:32]} 0-1

[Event "Paul Keres Memorial Festival 2022"]
[Site "Pärnu, Estonia Resort Hotel & Spa"]
[Date "2022.07.22"]
[Round "8.7"]
[White "Agrest, Simon"]
[Black "Rondo, Mikko"]
[Result "0-1"]
[TimeControl "60 min for 30 moves + 30 min until game end, from first move every move 30 sec time increment"]
[BlackFideId "4509633"]
[WhiteElo "1802"]
[BlackElo "1579"]

1. e4 {[%clk 01:00:24]} {[%emt 00:00:28]} g6 {[%clk 00:59:12]} {[%emt
00:01:56]} 2. d4 {[%clk 00:59:27]} {[%emt 00:01:26]} Bg7 {[%clk 00:58:09]}
{[%emt 00:01:32]} 3. c4 {[%clk 00:58:52]} {[%emt 00:01:05]} d6 {[%clk
00:57:25]} {[%emt 00:01:14]} 4. Nf3 {[%clk 00:56:08]} {[%emt 00:03:14]} Nd7
{[%clk 00:56:24]} {[%emt 00:01:31]} 5. Nc3 {[%clk 00:55:09]} {[%emt 00:01:30]}
c5 {[%clk 00:51:07]} {[%emt 00:05:46]} 6. d5 {[%clk 00:54:02]} {[%emt
00:01:38]} Ne5 {[%clk 00:41:01]} {[%emt 00:10:37]} 7. Bf4 {[%clk 00:50:08]}
{[%emt 00:04:23]} Bg4 {[%clk 00:37:51]} {[%emt 00:03:39]} 8. Be2 {[%clk
00:41:05]} {[%emt 00:09:33]} Nxf3+ {[%clk 00:33:41]} {[%emt 00:04:40]} 9. gxf3
{[%clk 00:40:19]} {[%emt 00:01:16]} Bd7 {[%clk 00:33:35]} {[%emt 00:00:35]} 10.
Bg3 {[%clk 00:38:30]} {[%emt 00:02:19]} Nf6 {[%clk 00:30:43]} {[%emt 00:03:22]}
11. f4 {[%clk 00:36:12]} {[%emt 00:02:48]} Qa5 {[%clk 00:27:58]} {[%emt
00:03:15]} 12. O-O {[%clk 00:35:11]} {[%emt 00:01:31]} h5 {[%clk 00:26:35]}
{[%emt 00:01:52]} 13. h4 {[%clk 00:34:33]} {[%emt 00:01:08]} Ng4 {[%clk
00:24:46]} {[%emt 00:02:19]} 14. Qd3 {[%clk 00:31:03]} {[%emt 00:03:59]} O-O-O
{[%clk 00:20:06]} {[%emt 00:05:11]} 15. a3 {[%clk 00:28:48]} {[%emt 00:02:46]}
Kb8 {[%clk 00:16:49]} {[%emt 00:03:47]} 16. f3 {[%clk 00:24:09]} {[%emt
00:05:09]} Nh6 {[%clk 00:15:50]} {[%emt 00:01:30]} 17. Rfb1 {[%clk 00:22:10]}
{[%emt 00:02:29]} Bxc3 {[%clk 00:15:30]} {[%emt 00:00:50]} 18. bxc3 {[%clk
00:22:27]} {[%emt 00:00:13]} Ka8 {[%clk 00:15:50]} {[%emt 00:00:10]} 19. Rb3
{[%clk 00:21:24]} {[%emt 00:01:33]} Qc7 {[%clk 00:15:58]} {[%emt 00:00:22]} 20.
Rab1 {[%clk 00:19:53]} {[%emt 00:02:02]} Rb8 {[%clk 00:15:31]} {[%emt
00:00:57]} 21. Bf1 {[%clk 00:17:42]} {[%emt 00:02:40]} f6 {[%clk 00:15:14]}
{[%emt 00:00:47]} 22. Kh2 {[%clk 00:17:26]} {[%emt 00:00:47]} Nf7 {[%clk
00:14:34]} {[%emt 00:01:09]} 23. Qe3 {[%clk 00:16:05]} {[%emt 00:01:51]} Rhg8
{[%clk 00:13:48]} {[%emt 00:01:16]} 24. Re1 {[%clk 00:15:12]} {[%emt 00:01:23]}
g5 {[%clk 00:11:57]} {[%emt 00:02:22]} 25. fxg5 {[%clk 00:14:06]} {[%emt
00:01:36]} fxg5 {[%clk 00:12:21]} {[%emt 00:00:06]} 26. hxg5 {[%clk 00:12:34]}
{[%emt 00:02:02]} Rxg5 {[%clk 00:08:36]} {[%emt 00:04:14]} 27. Bh4 {[%clk
00:11:23]} {[%emt 00:01:40]} Rgg8 {[%clk 00:08:28]} {[%emt 00:00:38]} 28. Bxe7
{[%clk 00:09:27]} {[%emt 00:02:27]} Ba4 {[%clk 00:07:37]} {[%emt 00:01:21]} 29.
Rb2 {[%clk 00:06:21]} {[%emt 00:03:35]} Qxe7 {[%clk 00:08:00]} {[%emt
00:00:07]} 30. f4 {[%clk 00:35:56]} {[%emt 00:00:55]} Qh4+ {[%clk 00:37:21]}
{[%emt 00:01:09]} 31. Bh3 {[%clk 00:36:07]} {[%emt 00:00:18]} Bd7 {[%clk
00:37:15]} {[%emt 00:00:36]} 32. Rf1 {[%clk 00:35:53]} {[%emt 00:00:45]} Nh6
{[%clk 00:36:07]} {[%emt 00:01:39]} 33. Kh1 {[%clk 00:34:52]} {[%emt 00:01:30]}
Qxh3+ {[%clk 00:36:23]} {[%emt 00:00:14]} 0-1